bitfinex-derivatives/quotes_BNBF0:USTF0_20250315
["timestamp","ask_amount","ask_price","bid_price","bid_amount"]
[1742031706430,0.30178849,597.55,596.13,0.33549729]
[1742031706627,0.30178849,597.56,596.13,0.33549729]
[1742031709129,0.29159893,597.55,596.13,0.33549729]
[1742031709433,0.30178849,597.54,596.13,0.33549729]
[1742031712335,0.30178849,597.53,596.13,0.33549729]
[1742031712534,0.30178849,597.56,596.13,0.33549729]
[1742031712730,0.30178849,597.55,596.13,0.33549729]
[1742031712934,0.30178849,597.56,596.13,0.33549729]
[1742031713129,0.30178849,597.55,596.13,0.33549729]
[1742031713329,0.30178849,597.54,596.13,0.33549729]
[1742031713532,0.30178849,597.56,596.13,0.33549729]
[1742031713736,0.30178849,597.55,596.13,0.33549729]
[1742031714035,0.30178849,597.54,596.13,0.33549729]
[1742031714334,0.30178849,597.56,596.13,0.33549729]
[1742031714535,0.30178849,597.55,596.13,0.33549729]
[1742031715034,0.30168563,597.54,596.13,0.33549729]
[1742031715229,0.30168563,598.05,596.13,0.33549729]
[1742031715835,0.30168563,598.05,596.14,0.30786266]
[1742031716436,0.30168563,598.04,596.14,0.30786266]
[1742031716635,0.30168563,598.03,596.14,0.30786266]
[1742031716834,0.30168563,598.02,596.14,0.30786266]
[1742031717030,0.63612819,598.01,596.16,0.3354804]
[1742031717231,0.63613379,598.0,596.17,0.30786266]
[1742031717436,0.30168563,597.99,596.19,0.33546352]
[1742031717637,0.30168563,597.98,596.2,0.30786266]
[1742031717834,0.30168563,597.97,596.22,0.33544664]
[1742031718030,0.30168563,597.96,596.22,0.33544664]
[1742031718234,0.30168563,597.95,596.22,0.33544664]
[1742031718432,0.30168563,597.94,596.22,0.33544664]
[1742031718631,0.30168563,597.99,596.22,0.33544664]
[1742031718836,0.30168563,597.98,596.22,0.33544664]
[1742031719034,0.30168563,597.97,596.22,0.33544664]
[1742031719235,0.30168563,597.96,596.22,0.33544664]
[1742031719435,0.30168563,597.95,596.22,0.33544664]
[1742031719737,0.30168563,597.94,596.22,0.33544664]
[1742031719937,0.30168563,597.93,596.22,0.33544664]
[1742031720238,0.30168563,597.92,596.23,0.30787307]
[1742031720432,0.29147315,597.93,596.25,0.33542976]
[1742031720636,0.30164625,597.92,596.26,0.30783128]
[1742031720832,0.30164625,597.92,596.28,0.33541289]
[1742031721036,0.30164625,597.99,596.28,0.33541289]
[1742031721236,0.30164625,597.98,596.28,0.33541289]
[1742031721438,0.30164625,597.97,596.28,0.33541289]
[1742031721637,0.30164625,597.96,596.28,0.33541289]
[1742031721838,0.30166713,597.95,596.28,0.33541289]
[1742031722038,0.30166713,597.94,596.29,0.3078358]
[1742031722338,0.33444816,598.0,596.29,0.3078358]
[1742031722339,0.30166713,597.93,596.31,0.33539601]
[1742031722538,0.30166713,597.92,596.31,0.33539601]
[1742031722738,0.33444816,598.0,596.31,0.33539601]
[1742031722739,0.30166713,597.99,596.31,0.33539601]
[1742031722934,0.30166713,597.98,596.31,0.33539601]
[1742031723138,0.30166713,597.97,596.31,0.33539601]
[1742031724138,0.29148292,597.96,596.31,0.33539601]
[1742031724538,0.30166713,597.95,596.31,0.33539601]
[1742031725642,0.29148292,597.96,596.31,0.33539601]
[1742031725844,0.30164903,597.95,596.31,0.33539601]
[1742031727144,0.30164903,597.94,596.31,0.33539601]
[1742031727339,0.30164903,597.99,596.31,0.33539601]
[1742031727540,0.30162823,597.98,596.31,0.33539601]
[1742031727741,0.30162823,597.99,596.31,0.33539601]
[1742031727943,0.30162823,597.98,596.31,0.33539601]
[1742031728143,0.30162823,597.97,596.32,0.30782279]
[1742031728343,0.30162823,597.96,596.34,0.33537914]
[1742031728544,0.30162823,597.95,596.35,0.30782279]
[1742031728845,0.30162823,597.94,596.37,0.33536227]
[1742031729045,0.30162823,597.93,596.37,0.33536227]
[1742031729240,0.30162823,597.92,596.38,0.30781032]
[1742031729443,0.30162823,597.92,596.37,0.33536227]
[1742031729444,0.30162823,597.91,596.37,0.33536227]
[1742031729744,0.30162823,597.9,596.38,0.30781578]
[1742031729946,0.30162823,597.89,596.38,0.30781578]
[1742031730152,0.30162823,597.88,596.38,0.30781578]
[1742031730340,0.33444816,598.0,596.38,0.30781578]
[1742031730341,0.30162823,597.99,596.38,0.30781578]
[1742031730647,0.30162823,597.98,596.37,0.33536227]
[1742031730848,0.30162823,597.97,596.37,0.33536227]
[1742031731049,0.30162823,597.99,596.37,0.33536227]
[1742031731351,0.30162823,597.98,596.37,0.33536227]
[1742031731648,0.30162823,597.97,596.37,0.33536227]
[1742031731847,0.30162823,597.99,596.37,0.33536227]
[1742031732046,0.30162823,597.98,596.37,0.33536227]
[1742031732248,0.30162823,597.99,596.37,0.33536227]
[1742031732446,0.30162823,597.98,596.37,0.33536227]
[1742031732646,0.30162823,597.99,596.37,0.33536227]
[1742031732946,0.30162823,597.98,596.37,0.33536227]
[1742031733141,0.30162823,597.99,596.37,0.33536227]
[1742031735047,0.30163145,597.98,596.37,0.33536227]
[1742031735349,0.30163145,597.97,596.37,0.33536227]
[1742031735551,0.30163145,597.99,596.37,0.33536227]
[1742031735751,0.30163145,597.98,596.37,0.33536227]
[1742031736050,0.30163145,597.97,596.37,0.33536227]
[1742031736249,0.30163145,597.99,596.37,0.33536227]
[1742031736445,0.29145362,597.97,596.37,0.33536227]
[1742031736749,0.30163145,597.96,596.37,0.33536227]
[1742031739249,0.29146217,597.95,596.37,0.33536227]
[1742031739745,0.30163145,597.94,596.37,0.33536227]
[1742031740851,0.30163145,597.93,596.37,0.33536227]
[1742031741052,0.30163145,597.94,596.37,0.33536227]
[1742031741356,0.30163145,597.93,596.37,0.33536227]
[1742031741651,0.30163145,597.92,596.37,0.33536227]
[1742031741849,0.30165312,597.91,596.37,0.33536227]
[1742031742049,0.29146217,597.95,596.37,0.33536227]
[1742031742050,0.30165312,597.9,596.37,0.33536227]
[1742031742352,0.30165312,597.89,596.37,0.33536227]
[1742031742553,0.30165312,597.94,596.37,0.33536227]
[1742031742753,0.30165312,597.93,596.37,0.33536227]
[1742031743055,0.29146217,597.95,596.37,0.33536227]
[1742031743056,0.30165312,597.92,596.37,0.33536227]
[1742031743251,0.30165312,597.94,596.37,0.33536227]
[1742031743452,0.30165312,597.93,596.37,0.33536227]
[1742031743654,0.30165312,597.94,596.37,0.33536227]
[1742031744355,0.29146217,597.95,596.37,0.33536227]
[1742031744555,0.30165299,597.94,596.37,0.33536227]
[1742031745152,0.33444816,598.0,596.37,0.33536227]
[1742031745153,0.30165299,597.99,596.37,0.33536227]
[1742031745353,0.29147315,597.93,596.37,0.33536227]
[1742031745554,0.30165299,597.92,596.37,0.33536227]
[1742031748066,0.33444816,598.0,596.37,0.33536227]
[1742031748067,0.30165299,597.99,596.37,0.33536227]
[1742031748257,0.29147315,597.91,596.37,0.33536227]
[1742031748453,0.30163542,597.9,596.37,0.33536227]
[1742031748657,0.30163542,597.89,596.37,0.33536227]
[1742031748865,0.30163542,597.99,596.37,0.33536227]
[1742031751258,0.29145362,597.98,596.37,0.33536227]
[1742031751456,0.30163542,597.97,596.37,0.33536227]
[1742031754059,0.30163542,597.96,596.37,0.33536227]
[1742031754359,0.30163542,597.95,596.37,0.33536227]
[1742031755867,0.29145607,597.96,596.37,0.33536227]
[1742031756163,0.30164752,597.95,596.37,0.33536227]
[1742031757162,0.29146827,597.94,596.37,0.33536227]
[1742031757569,0.30164752,597.93,596.37,0.33536227]
[1742031757770,0.30164688,597.92,596.37,0.33536227]
[1742031757972,0.30164688,597.93,596.37,0.33536227]
[1742031758169,0.29146827,597.94,596.37,0.33536227]
[1742031758170,0.30164688,597.92,596.37,0.33536227]
[1742031758367,0.30164688,597.91,596.37,0.33536227]
[1742031758565,0.30164688,597.93,596.37,0.33536227]
[1742031758767,0.30164688,597.92,596.37,0.33536227]
[1742031758967,0.30164688,597.93,596.37,0.33536227]
[1742031759271,0.30164688,597.92,596.37,0.33536227]
[1742031759471,0.29146827,597.94,596.37,0.33536227]
[1742031759671,0.30164687,597.93,596.37,0.33536227]
[1742031760268,0.29152809,597.92,596.37,0.33536227]
[1742031760667,0.30164687,597.91,596.37,0.33536227]
[1742031761471,0.29152809,597.92,596.37,0.33536227]
[1742031761668,0.30162904,597.91,596.38,0.30781395]
[1742031761869,0.30162904,597.9,596.4,0.3353454]
[1742031762070,0.30162904,597.89,596.41,0.30781395]
[1742031762274,0.30162904,597.88,596.43,0.33532853]
[1742031762474,0.30162904,597.87,596.43,0.33532853]
[1742031762673,0.30162904,597.91,596.43,0.33532853]
[1742031762867,0.33444816,598.0,596.43,0.33532853]
[1742031762868,0.30162904,597.9,596.43,0.33532853]
[1742031763073,2.56182178,597.93,596.43,0.33532853]
[1742031763269,0.30162904,597.89,596.43,0.33532853]
[1742031763574,0.30162904,597.88,596.43,0.33532853]
[1742031763768,0.30162904,597.89,596.43,0.33532853]
[1742031766176,0.30162904,597.89,596.44,0.30780538]
[1742031766376,0.30162904,597.89,596.46,0.33531167]
[1742031766971,0.29146095,597.9,596.46,0.33531167]
[1742031767176,0.30161516,597.89,596.46,0.33531167]
[1742031768976,0.33444816,598.0,596.46,0.33531167]
[1742031769272,0.29144996,597.88,596.46,0.33531167]
[1742031769476,0.30160318,597.87,596.46,0.33531167]
[1742031769771,0.30160318,597.86,596.46,0.33531167]
[1742031769978,0.33444816,598.0,596.46,0.33531167]
[1742031769979,0.30160318,597.99,596.46,0.33531167]
[1742031770180,0.30160318,597.98,596.46,0.33531167]
[1742031770374,0.30160318,597.99,596.46,0.33531167]
[1742031770579,0.30160318,597.98,596.46,0.33531167]
[1742031770875,0.33444816,598.0,596.46,0.33531167]
[1742031771079,0.30160241,597.99,596.46,0.33531167]
[1742031771275,0.2914341,597.97,596.46,0.33531167]
[1742031771472,0.30160241,597.96,596.46,0.33531167]
[1742031772076,0.30160241,597.95,596.46,0.33531167]
[1742031772277,0.30160241,597.99,596.46,0.33531167]
[1742031772476,0.30160241,597.98,596.46,0.33531167]
[1742031772677,0.33444816,598.0,596.46,0.33531167]
[1742031772878,0.30158879,597.99,596.46,0.33531167]
[1742031774178,0.29142922,597.98,596.46,0.33531167]
[1742031774379,0.30158879,597.97,596.46,0.33531167]
[1742031775380,0.59302045,597.96,596.46,0.33531167]
[1742031775578,0.30158879,597.95,596.46,0.33531167]
[1742031778083,0.30158879,597.99,596.46,0.33531167]
[1742031778278,0.29143532,597.94,596.46,0.33531167]
[1742031778479,0.30158879,597.93,596.46,0.33531167]
[1742031781187,0.29146705,597.92,596.46,0.33531167]
[1742031781387,0.30158879,597.91,596.46,0.33531167]
[1742031781688,0.30165623,597.9,596.46,0.33531167]
[1742031781990,0.30165623,597.91,596.46,0.33531167]
[1742031782287,0.30165623,597.9,596.46,0.33531167]
[1742031782488,0.30165623,597.91,596.46,0.33531167]
[1742031783483,0.29146705,597.92,596.46,0.33531167]
[1742031783688,0.30165958,597.91,596.46,0.33531167]
[1742031784088,0.30165958,597.99,596.46,0.33531167]
[1742031784285,0.29146949,597.9,596.46,0.33531167]
[1742031784486,0.30165958,597.89,596.46,0.33531167]
[1742031784892,0.30165958,597.97,596.46,0.33531167]
[1742031785090,0.63613011,597.96,596.46,0.33531167]
[1742031785292,0.6361357,597.95,596.46,0.33531167]
[1742031785591,0.63614982,597.94,596.46,0.33531167]
[1742031785891,0.63615541,597.93,596.46,0.33531167]
[1742031786090,0.3016681,597.92,596.46,0.33531167]
[1742031787086,0.29147804,597.91,596.46,0.33531167]
[1742031787290,0.3016681,597.9,596.46,0.33531167]
[1742031788191,0.33450969,597.89,596.46,0.33531167]
[1742031788491,0.3016681,597.88,596.46,0.33531167]
[1742031788692,0.63618898,597.87,596.46,0.33531167]
[1742031788892,0.63619457,597.86,596.46,0.33531167]
[1742031789092,0.63620017,597.85,596.46,0.33531167]
[1742031789292,0.3016681,597.84,596.46,0.33531167]
[1742031789492,0.33453207,597.85,596.46,0.33531167]
[1742031789493,2.56182178,597.75,596.46,0.33531167]
[1742031789792,0.3016681,597.74,596.46,0.33531167]
[1742031789993,0.3016681,597.73,596.46,0.33531167]
[1742031790188,0.3016681,597.72,596.46,0.33531167]
[1742031790390,0.3016681,597.71,596.46,0.33531167]
[1742031790591,0.3016681,597.7,596.46,0.33531167]
[1742031790892,0.3016681,597.69,596.46,0.33531167]
[1742031791093,0.29152687,597.74,596.46,0.33531167]
[1742031791293,0.30173092,597.73,596.46,0.33531167]
[1742031791493,0.30173092,597.72,596.46,0.33531167]
[1742031791893,0.30173092,597.71,596.46,0.33531167]
[1742031792091,0.30173092,597.7,596.46,0.33531167]
[1742031792288,0.30173092,597.69,596.46,0.33531167]
[1742031792488,0.30173092,597.68,596.46,0.33531167]
[1742031792693,0.30173092,597.73,596.46,0.33531167]
[1742031792889,0.30173092,597.72,596.46,0.33531167]
[1742031793194,0.30173092,597.71,596.46,0.33531167]
[1742031793394,0.30173092,597.7,596.46,0.33531167]
[1742031795193,0.30173092,597.69,596.46,0.33531167]
[1742031795389,0.29160626,597.71,596.46,0.33531167]
[1742031795390,0.30173092,597.68,596.46,0.33531167]
[1742031795594,0.30173092,597.67,596.46,0.33531167]
[1742031795794,0.30173092,597.66,596.46,0.33531167]
[1742031795991,0.30173092,597.65,596.46,0.33531167]
[1742031796296,0.30173092,597.64,596.46,0.33531167]
[1742031796497,0.29159038,597.65,596.46,0.33531167]
[1742031796691,0.30181326,597.64,596.46,0.33531167]
[1742031796991,0.30181326,597.63,596.46,0.33531167]
[1742031797191,0.29159038,597.65,596.46,0.33531167]
[1742031797389,0.30181087,597.64,596.46,0.33531167]
[1742031797590,0.30181087,597.63,596.46,0.33531167]
[1742031797794,0.30181087,597.62,596.46,0.33531167]
[1742031797990,0.30181087,597.61,596.46,0.33531167]
[1742031798293,0.30181087,597.6,596.46,0.33531167]
[1742031798494,0.30181087,597.59,596.46,0.33531167]
[1742031798698,0.30181087,597.58,596.46,0.33531167]
[1742031798995,0.30181087,597.57,596.46,0.33531167]
[1742031799193,0.30181087,597.56,596.46,0.33531167]
[1742031799397,0.30181087,597.55,596.46,0.33531167]
[1742031799597,0.30181087,597.54,596.46,0.33531167]
[1742031799797,0.30181087,597.53,596.46,0.33531167]
[1742031799997,0.30181087,597.52,596.46,0.33531167]
[1742031800192,0.30181087,597.51,596.46,0.33531167]
[1742031800397,0.29160138,597.57,596.46,0.33531167]
[1742031800591,0.30181712,597.56,596.46,0.33531167]
[1742031800796,0.30181712,597.55,596.46,0.33531167]
[1742031800993,0.30181712,597.54,596.46,0.33531167]
[1742031801397,0.30181712,597.53,596.46,0.33531167]
[1742031801594,0.30181712,597.52,596.46,0.33531167]
[1742031801795,0.30181712,597.51,596.46,0.33531167]
[1742031802100,0.30183237,597.5,596.46,0.33531167]
[1742031802300,0.30183214,597.49,596.46,0.33531167]
[1742031802502,0.30183214,597.48,596.46,0.33531167]
[1742031802800,0.30183214,597.47,596.46,0.33531167]
[1742031803001,0.30183214,597.49,596.46,0.33531167]
[1742031803200,0.30183214,597.48,596.46,0.33531167]
[1742031803401,0.29161482,597.5,596.46,0.33531167]
[1742031803402,0.30183214,597.47,596.46,0.33531167]
[1742031803597,0.30183214,597.49,596.46,0.33531167]
[1742031803903,0.30183214,597.48,596.46,0.33531167]
[1742031804102,0.29161482,597.5,596.46,0.33531167]
[1742031804103,0.30183214,597.47,596.46,0.33531167]
[1742031804403,0.30183214,597.46,596.46,0.33531167]
[1742031804601,0.30183214,597.49,596.46,0.33531167]
[1742031804801,0.30183214,597.48,596.46,0.33531167]
[1742031805102,0.30183214,597.49,596.46,0.33531167]
[1742031805402,0.30183214,597.48,596.46,0.33531167]
[1742031805796,0.30183214,597.47,596.46,0.33531167]
[1742031806102,0.30183214,597.46,596.46,0.33531167]
[1742031806303,0.30183214,597.45,596.46,0.33531167]
[1742031806602,0.30183214,597.44,596.46,0.33531167]
[1742031806800,0.30183214,597.43,596.46,0.33531167]
[1742031807003,0.30183214,597.42,594.85,0.6214145]
[1742031807203,0.30183214,597.41,596.0,0.29169303]
[1742031807498,0.30183214,597.4,596.01,0.33556483]
[1742031807699,0.30183214,597.39,596.01,0.33556483]
[1742031807897,0.30183214,597.38,596.01,0.33556483]
[1742031808097,0.30183214,597.48,596.01,0.33556483]
[1742031808299,0.29182879,597.37,596.01,0.33556483]
[1742031808500,0.30183214,597.36,596.01,0.33556483]
[1742031808901,0.30183214,597.35,596.01,0.33556483]
[1742031809100,0.30183214,597.46,596.01,0.33556483]
[1742031809303,0.63658818,597.45,596.01,0.33556483]
[1742031809504,0.63659378,597.44,596.01,0.33556483]
[1742031809803,0.63659939,597.43,596.01,0.33556483]
[1742031809996,0.30183214,597.42,596.01,0.33045478]
[1742031810204,0.30183214,597.41,596.01,0.33045478]
[1742031810403,0.30183214,597.42,596.01,0.33045478]
[1742031810600,0.30183214,597.41,596.01,0.33045478]
[1742031810802,0.30183214,597.42,596.01,0.33045478]
[1742031811001,0.30183214,597.41,596.01,0.33045478]
[1742031811202,0.30183214,597.42,596.01,0.33045478]
[1742031811402,0.30183214,597.41,596.01,0.33045478]
[1742031811604,0.30183214,597.42,596.01,0.33045478]
[1742031811804,0.30183214,597.41,596.01,0.33045478]
[1742031812005,0.30183214,597.42,596.01,0.33045478]
[1742031812206,0.30183214,597.41,596.01,0.33045478]
[1742031812506,0.30183214,597.4,596.01,0.33045478]
[1742031812709,0.30183214,597.42,596.01,0.33045478]
[1742031812907,0.30183214,597.41,596.01,0.33045478]
[1742031813108,0.30183214,597.4,596.01,0.33045478]
[1742031813507,0.30183214,597.39,596.01,0.33045478]
[1742031813708,0.30183214,597.42,596.01,0.33045478]
[1742031813908,0.30183214,597.41,596.01,0.33045478]
[1742031814108,0.30183214,597.42,596.01,0.33045478]
[1742031814310,0.29172115,597.41,596.01,0.33045478]
[1742031814610,0.30183214,597.4,596.01,0.33045478]
[1742031815406,0.30170296,597.39,596.01,0.33045478]
[1742031815706,0.30170296,597.38,596.01,0.33045478]
[1742031815911,0.30170296,597.4,596.01,0.33045478]
[1742031817104,0.33476725,597.43,596.01,0.33045478]
[1742031817306,0.29171871,597.39,596.01,0.33045478]
[1742031817507,0.30169523,597.38,596.01,0.33045478]
[1742031820909,0.30169476,597.37,596.01,0.33045478]
[1742031821118,0.30169476,597.38,596.01,0.33045478]
[1742031821315,0.30169476,597.37,596.01,0.33045478]
[1742031821710,0.30169476,597.36,596.01,0.33045478]
[1742031821915,0.30169476,597.38,596.01,0.33045478]
[1742031822623,0.30169476,597.37,596.01,0.33045478]
[1742031822818,0.30169476,597.36,596.01,0.33045478]
[1742031823218,0.30169476,597.35,596.01,0.33045478]
[1742031823423,0.30169476,597.34,596.01,0.33045478]
[1742031823618,0.30169476,597.33,596.01,0.33045478]
[1742031823824,0.30169476,597.32,596.01,0.33045478]
[1742031824127,0.29171871,597.35,596.01,0.33045478]
[1742031824128,0.30169476,597.31,596.01,0.33045478]
[1742031824324,0.30169476,597.34,596.01,0.33045478]
[1742031824525,0.30169476,597.33,596.01,0.33045478]
[1742031824726,0.30169476,597.32,596.01,0.33045478]
[1742031825027,0.30169476,597.31,596.01,0.33045478]
[1742031825222,0.29171871,597.35,596.01,0.33045478]
[1742031825223,0.30169476,597.3,596.01,0.33045478]
[1742031825427,0.30169476,597.29,596.01,0.33045478]
[1742031825627,0.30169476,597.28,596.01,0.33045478]
[1742031825829,0.30169476,597.27,596.01,0.33045478]
[1742031826023,0.30169476,597.26,596.01,0.33045478]
[1742031826227,0.30169476,597.42,596.01,0.33045478]
[1742031826427,0.29172238,597.26,596.01,0.33045478]
[1742031826628,0.30169486,597.25,596.01,0.33045478]
[1742031826830,0.30169486,597.42,596.01,0.33045478]
[1742031827028,0.33476725,597.43,596.01,0.33045478]
[1742031827228,0.30170631,597.42,596.01,0.33045478]
[1742031827430,0.33477846,597.41,596.01,0.33045478]
[1742031827627,0.30170631,597.4,596.01,0.33045478]
[1742031827826,0.33478966,597.39,596.01,0.33045478]
[1742031828031,0.30170631,597.38,596.01,0.33045478]
[1742031829332,0.29171626,597.37,596.01,0.33045478]
[1742031829634,0.30170631,597.36,596.01,0.33045478]
[1742031832031,0.3016852,597.35,596.01,0.33045478]
[1742031832328,0.3016852,597.34,596.01,0.33045478]
[1742031835037,0.3016852,597.33,596.01,0.33045478]
[1742031835338,0.3016852,597.32,596.01,0.33045478]
[1742031835537,0.3016852,597.31,596.01,0.33045478]
[1742031835738,0.3016852,597.32,596.01,0.33045478]
[1742031836032,0.3016852,597.31,596.01,0.33045478]
[1742031836437,0.3016852,597.3,596.01,0.33045478]
[1742031836637,0.3016852,597.29,596.01,0.33045478]
[1742031836833,0.3016852,597.28,596.01,0.33045478]
[1742031837035,0.3016852,597.27,596.01,0.33045478]
[1742031837237,0.3016852,597.26,596.01,0.33045478]
[1742031837538,0.3016852,597.25,596.01,0.33045478]
[1742031837732,0.3016852,597.32,596.01,0.33045478]
[1742031837934,0.3016852,597.31,596.01,0.33045478]
[1742031838135,0.3016852,597.3,596.01,0.33045478]
[1742031838337,0.3016852,597.29,596.01,0.33045478]
[1742031838537,0.3016852,597.28,596.01,0.33045478]
[1742031838738,0.3016852,597.27,596.01,0.33045478]
[1742031838940,0.3016852,597.26,596.01,0.33045478]
[1742031839138,0.3016852,597.3,596.01,0.33045478]
[1742031839339,0.3016852,597.29,596.01,0.33045478]
[1742031839735,0.3016852,597.28,596.01,0.33045478]
[1742031839941,0.3016852,597.27,596.01,0.33045478]
[1742031840140,0.3016852,597.26,596.01,0.33045478]
[1742031840340,0.3016852,597.25,596.01,0.33045478]
[1742031840537,0.3016852,597.29,596.01,0.33045478]
[1742031840739,0.3016852,597.28,596.01,0.33045478]
[1742031840942,0.3016852,597.29,596.01,0.33045478]
[1742031841139,0.3016852,597.28,596.01,0.33045478]
[1742031841341,0.3016852,597.29,596.01,0.33045478]
[1742031841536,0.3016852,597.28,596.01,0.33045478]
[1742031841739,0.3016852,597.29,596.01,0.33045478]
[1742031841942,0.3016852,597.28,596.01,0.33045478]
[1742031842140,0.3016852,597.3,596.01,0.33045478]
[1742031842334,0.3016852,597.29,596.01,0.33045478]
[1742031842539,0.3016852,597.3,596.01,0.33045478]
[1742031842735,0.3016852,597.29,596.01,0.33045478]
[1742031842937,0.3016852,597.3,596.01,0.33045478]
[1742031843134,0.3016852,597.29,596.01,0.33045478]
[1742031843338,0.3016852,597.3,596.01,0.33045478]
[1742031844141,0.3016852,597.38,596.01,0.33045478]
[1742031844342,0.29172115,597.29,596.01,0.33045478]
[1742031844540,0.33478966,597.39,596.01,0.33045478]
[1742031844541,0.3016852,597.28,596.01,0.33045478]
[1742031844741,0.3016852,597.38,596.01,0.33045478]
[1742031846642,0.30168471,597.37,596.01,0.33045478]
[1742031846845,0.30168471,597.38,596.01,0.33045478]
[1742031847045,0.30168471,597.37,596.01,0.33045478]
[1742031847246,0.30168471,597.36,596.01,0.33045478]
[1742031847441,0.33478966,597.39,596.01,0.33045478]
[1742031847442,0.30168471,597.38,596.01,0.33045478]
[1742031847646,0.30168471,597.37,596.01,0.33045478]
[1742031847846,0.30168471,597.38,596.01,0.33045478]
[1742031849341,0.29170159,597.37,596.01,0.33045478]
[1742031849542,0.30168471,597.36,596.01,0.33045478]
[1742031850344,0.29170893,597.35,596.01,0.33045478]
[1742031850545,0.30168471,597.34,596.01,0.33045478]
[1742031853144,0.30168471,597.38,596.01,0.33045478]
[1742031853344,0.29178964,597.33,596.01,0.33045478]
[1742031853544,0.30168471,597.32,596.01,0.33045478]
[1742031855948,0.33478966,597.39,596.01,0.33045478]
[1742031856146,0.30168929,597.38,596.01,0.33045478]
[1742031856451,0.59347526,597.38,596.01,0.33045478]
[1742031856651,0.30168929,597.37,596.01,0.33045478]
[1742031859253,0.30168929,597.38,596.01,0.33045478]
[1742031859454,0.29173705,597.36,596.01,0.33045478]
[1742031859654,0.30168929,597.35,596.01,0.33045478]
[1742031860555,0.33481769,597.34,596.01,0.33045478]
[1742031860755,0.30168929,597.33,596.01,0.33045478]
[1742031861054,0.3348289,597.32,596.01,0.33045478]
[1742031861355,0.30168929,597.31,596.01,0.33045478]
[1742031861549,0.33484011,597.3,596.01,0.33045478]
[1742031861749,0.30168929,597.29,596.01,0.33045478]
[1742031861951,0.33485132,597.28,596.01,0.33045478]
[1742031862156,0.30168929,597.27,596.01,0.33045478]
[1742031862353,0.33486253,597.26,596.01,0.33045478]
[1742031863758,0.30242968,597.25,596.01,0.33045478]
[1742031863953,0.33487375,597.24,596.01,0.33045478]
[1742031864156,0.30242968,597.23,596.01,0.33045478]
[1742031864453,0.33488496,597.22,596.01,0.33045478]
[1742031864659,0.30242968,597.21,596.01,0.33045478]
[1742031864861,0.33489618,597.2,596.01,0.33045478]
[1742031865062,0.30242968,597.19,596.01,0.33045478]
[1742031865359,0.63733707,597.18,596.01,0.33045478]
[1742031865558,0.63734268,597.17,596.01,0.33045478]
[1742031865755,0.30242968,597.16,596.01,0.33045478]
[1742031865958,0.6373539,597.15,596.01,0.33045478]
[1742031866157,0.63735951,597.14,596.01,0.33045478]
[1742031866354,2.86425146,597.13,596.01,0.33045478]
[1742031866559,0.30242968,597.12,596.01,0.33045478]
[1742031866760,0.33494665,597.11,596.01,0.33045478]
[1742031866961,0.30248723,597.1,596.01,0.33045478]
[1742031867257,0.30248723,597.09,596.01,0.33045478]
[1742031867460,0.30248723,597.08,596.01,0.33045478]
[1742031867861,0.30248723,597.07,596.01,0.33045478]
[1742031868061,0.30248723,597.06,596.01,0.33045478]
[1742031868260,0.30248723,597.05,596.01,0.33045478]
[1742031868461,0.30248723,597.04,596.01,0.33045478]
[1742031868662,0.30248723,597.03,596.01,0.33045478]
[1742031868863,0.30248723,597.02,596.01,0.33045478]
[1742031869059,0.30248723,597.01,596.01,0.33045478]
[1742031869362,0.30248723,597.0,596.01,0.33045478]
[1742031869562,0.30248723,597.05,596.01,0.33045478]
[1742031869764,0.30248723,597.04,596.01,0.33045478]
[1742031869962,0.30248723,597.03,596.01,0.33045478]
[1742031870158,0.30248723,597.02,596.01,0.33045478]
[1742031870359,0.30248723,597.05,596.01,0.33045478]
[1742031870559,0.30248723,597.04,596.01,0.33045478]
[1742031870765,0.30248723,597.03,596.01,0.33045478]
[1742031870963,0.30248723,597.02,596.01,0.33045478]
[1742031871161,0.30248723,597.09,596.01,0.33045478]
[1742031871363,0.59449356,597.01,596.01,0.33045478]
[1742031871559,0.30248723,597.0,596.01,0.33045478]
[1742031871864,0.30248723,596.99,596.01,0.33045478]
[1742031872065,0.30248723,597.07,596.01,0.33045478]
[1742031872258,0.30248723,596.98,596.01,0.33045478]
[1742031872462,0.63745632,597.07,596.01,0.33045478]
[1742031872658,0.30248723,597.06,596.01,0.33045478]
[1742031872863,0.30248723,597.05,596.01,0.33045478]
[1742031873058,0.59437967,597.06,596.01,0.33045478]
[1742031873264,0.30248723,597.05,596.01,0.33045478]
[1742031876664,0.30248723,597.04,596.01,0.33045478]
[1742031876869,0.30248723,597.03,596.01,0.33045478]
[1742031877068,0.30248723,597.02,596.01,0.33045478]
[1742031877268,0.30248723,597.01,596.01,0.33045478]
[1742031877469,0.30248723,597.0,596.01,0.33045478]
[1742031877768,0.30248723,596.99,596.01,0.33045478]
[1742031877965,0.30248723,597.01,596.01,0.33045478]
[1742031878163,0.30248723,597.0,596.01,0.33045478]
[1742031878366,0.30248723,597.01,596.01,0.33045478]
[1742031878569,0.30248723,597.0,596.01,0.33045478]
[1742031878872,0.30248723,596.99,596.01,0.33045478]
[1742031879068,0.30248723,596.98,596.01,0.33045478]
[1742031879271,0.30248723,596.97,596.01,0.33045478]
[1742031879569,0.30248723,596.96,596.01,0.33045478]
[1742031879970,0.30248723,596.95,596.01,0.33045478]
[1742031880165,0.30248723,597.06,596.01,0.33045478]
[1742031880370,0.29188264,596.95,596.01,0.33045478]